[Event "Open NK Rapid 2025"]
[Site "Helmond, Netherlands"]
[Date "2025.05.03"]
[Round "2.14"]
[White "Van Esch, Rob"]
[Black "Grochal, Joey"]
[Result "0-1"]
[TimeControl "15+5"]
[WhiteFideId "40119289"]
[BlackFideId "1019945"]
[WhiteElo "1860"]
[BlackElo "2261"]

1. e4 {[%clk 00:15:06]} {[%emt 00:00:03]} c5 {[%clk 00:15:09]} {[%emt
00:00:02]} 2. Nf3 {[%clk 00:15:04]} {[%emt 00:00:06]} Nc6 {[%clk 00:15:13]}
{[%emt 00:00:02]} 3. b4 {[%clk 00:14:57]} {[%emt 00:00:11]} cxb4 {[%clk
00:15:09]} {[%emt 00:00:10]} 4. d4 {[%clk 00:14:58]} {[%emt 00:00:04]} d5
{[%clk 00:15:12]} {[%emt 00:00:02]} 5. exd5 {[%clk 00:14:56]} {[%emt 00:00:07]}
Qxd5 {[%clk 00:15:14]} {[%emt 00:00:02]} 6. c4 {[%clk 00:14:59]} {[%emt
00:00:03]} bxc3 {[%clk 00:15:17]} {[%emt 00:00:02]} 7. Nxc3 {[%clk 00:14:57]}
{[%emt 00:00:06]} Qa5 {[%clk 00:15:19]} {[%emt 00:00:03]} 8. Rb1 {[%clk
00:13:54]} {[%emt 00:01:09]} Qxc3+ {[%clk 00:15:22]} {[%emt 00:00:02]} 9. Bd2
{[%clk 00:13:48]} {[%emt 00:00:10]} Qa3 {[%clk 00:15:25]} {[%emt 00:00:02]} 10.
d5 {[%clk 00:13:47]} {[%emt 00:00:07]} e6 {[%clk 00:15:29]} {[%emt 00:00:02]}
11. dxc6 {[%clk 00:10:06]} {[%emt 00:03:45]} bxc6 {[%clk 00:15:32]} {[%emt
00:00:02]} 12. Qc2 {[%clk 00:09:45]} {[%emt 00:00:26]} Qd6 {[%clk 00:14:39]}
{[%emt 00:00:58]} 13. Bb4 {[%clk 00:08:04]} {[%emt 00:01:46]} c5 {[%clk
00:09:41]} {[%emt 00:05:02]} 14. Bb5+ {[%clk 00:07:01]} {[%emt 00:01:09]} Bd7
{[%clk 00:09:45]} 15. Rd1 {[%clk 00:06:20]} {[%emt 00:00:46]} Bxb5 {[%clk
00:09:37]} {[%emt 00:00:13]} 16. Rxd6 {[%clk 00:06:20]} {[%emt 00:00:05]} Bxd6
{[%clk 00:09:40]} {[%emt 00:00:02]} 17. Qe4 {[%clk 00:03:07]} {[%emt 00:03:18]}
Rb8 {[%clk 00:09:20]} {[%emt 00:00:25]} 18. Bc3 {[%clk 00:03:07]} {[%emt
00:00:05]} Nf6 {[%clk 00:09:11]} {[%emt 00:00:14]} 19. Bxf6 {[%clk 00:02:59]}
{[%emt 00:00:13]} gxf6 {[%clk 00:09:14]} {[%emt 00:00:02]} 20. Nd2 {[%clk
00:02:48]} {[%emt 00:00:15]} Ke7 {[%clk 00:08:50]} {[%emt 00:00:29]} 21. f3
{[%clk 00:02:03]} {[%emt 00:00:51]} Rhc8 {[%clk 00:08:32]} {[%emt 00:00:23]} 22.
Kf2 {[%clk 00:01:57]} {[%emt 00:00:11]} c4 {[%clk 00:08:35]} {[%emt 00:00:03]}
23. Rc1 {[%clk 00:01:53]} {[%emt 00:00:07]} c3 {[%clk 00:07:55]} {[%emt
00:00:45]} 24. Nb3 {[%clk 00:01:38]} {[%emt 00:00:21]} Rc4 {[%clk 00:07:06]}
{[%emt 00:00:54]} 25. Qe3 {[%clk 00:01:11]} {[%emt 00:00:31]} Rbc8 {[%clk
00:06:29]} {[%emt 00:00:41]} 26. g3 {[%clk 00:00:26]} {[%emt 00:00:51]} R8c7
{[%clk 00:06:07]} {[%emt 00:00:28]} 27. Kg2 {[%clk 00:00:27]} {[%emt 00:00:04]}
Be5 {[%clk 00:05:21]} {[%emt 00:00:51]} 28. f4 {[%clk 00:00:19]} {[%emt
00:00:13]} Bd6 {[%clk 00:05:25]} 0-1

[Event "Open NK Rapid 2025"]
[Site "Helmond, Netherlands"]
[Date "2025.05.03"]
[Round "2.15"]
[White "Hilwerda, Jonas"]
[Black "Koppenens, Oscar"]
[Result "1-0"]
[TimeControl "15+5"]
[WhiteFideId "1046713"]
[BlackFideId "1087940"]
[WhiteElo "2233"]
[BlackElo "1858"]

1. e4 {[%clk 00:15:08]} {[%emt 00:00:02]} c5 {[%clk 00:15:09]} {[%emt
00:00:02]} 2. Nf3 {[%clk 00:15:09]} {[%emt 00:00:04]} Nc6 {[%clk 00:15:07]}
{[%emt 00:00:07]} 3. Nc3 {[%clk 00:15:07]} {[%emt 00:00:07]} g6 {[%clk
00:14:49]} {[%emt 00:00:22]} 4. Bb5 {[%clk 00:14:37]} {[%emt 00:00:35]} Bg7
{[%clk 00:13:57]} {[%emt 00:00:58]} 5. O-O {[%clk 00:14:39]} {[%emt 00:00:03]}
e5 {[%clk 00:13:50]} {[%emt 00:00:12]} 6. d3 {[%clk 00:14:13]} {[%emt
00:00:32]} Nge7 {[%clk 00:13:44]} {[%emt 00:00:09]} 7. a3 {[%clk 00:13:16]}
{[%emt 00:01:03]} O-O {[%clk 00:13:20]} {[%emt 00:00:29]} 8. Bc4 {[%clk
00:13:00]} {[%emt 00:00:22]} d6 {[%clk 00:12:54]} {[%emt 00:00:30]} 9. h3
{[%clk 00:13:01]} {[%emt 00:00:04]} Kh8 {[%clk 00:12:57]} {[%emt 00:00:02]} 10.
Nh2 {[%clk 00:12:36]} {[%emt 00:00:29]} f5 {[%clk 00:12:32]} {[%emt 00:00:31]}
11. f4 {[%clk 00:12:25]} {[%emt 00:00:15]} exf4 {[%clk 00:12:15]} {[%emt
00:00:23]} 12. Bxf4 {[%clk 00:12:27]} {[%emt 00:00:03]} Ne5 {[%clk 00:12:11]}
{[%emt 00:00:09]} 13. Ba2 {[%clk 00:12:15]} {[%emt 00:00:17]} N7c6 {[%clk
00:12:14]} {[%emt 00:00:02]} 14. Nd5 {[%clk 00:12:09]} {[%emt 00:00:11]} Be6
{[%clk 00:12:02]} {[%emt 00:00:17]} 15. c3 {[%clk 00:12:14]} Qd7 {[%clk
00:11:55]} {[%emt 00:00:12]} 16. Kh1 {[%clk 00:11:53]} {[%emt 00:00:25]} Rad8
{[%clk 00:11:46]} {[%emt 00:00:14]} 17. Qd2 {[%clk 00:09:35]} {[%emt 00:02:22]}
b5 {[%clk 00:10:12]} {[%emt 00:01:40]} 18. a4 {[%clk 00:07:34]} {[%emt
00:02:06]} a6 {[%clk 00:09:43]} {[%emt 00:00:34]} 19. axb5 {[%clk 00:07:34]}
{[%emt 00:00:05]} axb5 {[%clk 00:09:46]} {[%emt 00:00:01]} 20. Nb6 {[%clk
00:06:29]} {[%emt 00:01:11]} Qf7 {[%clk 00:09:11]} {[%emt 00:00:40]} 21. Bxe6
{[%clk 00:05:55]} {[%emt 00:00:38]} Qxe6 {[%clk 00:09:15]} {[%emt 00:00:02]} 22.
Bg5 {[%clk 00:04:31]} {[%emt 00:01:29]} Rb8 {[%clk 00:08:46]} {[%emt 00:00:35]}
23. Nd5 {[%clk 00:04:35]} {[%emt 00:00:01]} c4 {[%clk 00:08:36]} {[%emt
00:00:14]} 24. Nf4 {[%clk 00:03:59]} {[%emt 00:00:40]} Qe8 {[%clk 00:08:30]}
{[%emt 00:00:11]} 25. d4 {[%clk 00:01:44]} {[%emt 00:02:20]} Nf7 {[%clk
00:08:28]} {[%emt 00:00:07]} 26. h4 {[%clk 00:01:48]} {[%emt 00:00:01]} Nxg5
{[%clk 00:08:15]} {[%emt 00:00:18]} 27. hxg5 {[%clk 00:01:52]} {[%emt
00:00:01]} fxe4 {[%clk 00:08:08]} {[%emt 00:00:12]} 28. Nd5 {[%clk 00:01:55]}
{[%emt 00:00:02]} Qe6 {[%clk 00:07:56]} {[%emt 00:00:17]} 29. Nf6 {[%clk
00:01:31]} {[%emt 00:00:30]} Bxf6 {[%clk 00:07:46]} {[%emt 00:00:14]} 30. gxf6
{[%clk 00:01:26]} {[%emt 00:00:10]} d5 {[%clk 00:07:42]} {[%emt 00:00:10]} 31.
Qg5 {[%clk 00:01:26]} {[%emt 00:00:04]} Rb7 {[%clk 00:07:24]} {[%emt 00:00:23]}
32. Ng4 {[%clk 00:01:27]} {[%emt 00:00:04]} Rbf7 {[%clk 00:07:14]} {[%emt
00:00:15]} 33. Ra6 {[%clk 00:01:24]} {[%emt 00:00:08]} h5 {[%clk 00:06:55]}
{[%emt 00:00:24]} 34. Qh6+ {[%clk 00:01:28]} {[%emt 00:00:01]} Rh7 {[%clk
00:06:59]} 35. Qxf8+ {[%clk 00:01:32]} {[%emt 00:00:01]} 1-0

[Event "Open NK Rapid 2025"]
[Site "Helmond, Netherlands"]
[Date "2025.05.03"]
[Round "2.16"]
[White "Ponomarev, Ivan"]
[Black "Grooten, Herman"]
[Result "0-1"]
[TimeControl "15+5"]
[WhiteFideId "34411003"]
[BlackFideId "1000330"]
[WhiteElo "1857"]
[BlackElo "2219"]

1. c4 {[%clk 00:15:08]} {[%emt 00:00:02]} c5 {[%clk 00:15:08]} {[%emt
00:00:02]} 2. g3 {[%clk 00:15:12]} {[%emt 00:00:01]} g6 {[%clk 00:15:11]}
{[%emt 00:00:03]} 3. Bg2 {[%clk 00:15:15]} {[%emt 00:00:01]} Bg7 {[%clk
00:15:14]} 4. Nc3 {[%clk 00:15:19]} {[%emt 00:00:02]} Nc6 {[%clk 00:15:18]}
{[%emt 00:00:02]} 5. Rb1 {[%clk 00:15:20]} {[%emt 00:00:04]} e6 {[%clk
00:15:18]} {[%emt 00:00:05]} 6. a3 {[%clk 00:15:19]} {[%emt 00:00:06]} a5
{[%clk 00:15:00]} {[%emt 00:00:22]} 7. Nf3 {[%clk 00:13:20]} {[%emt 00:02:04]}
d6 {[%clk 00:14:52]} {[%emt 00:00:12]} 8. O-O {[%clk 00:13:13]} {[%emt
00:00:12]} Nge7 {[%clk 00:14:56]} {[%emt 00:00:02]} 9. d3 {[%clk 00:11:36]}
{[%emt 00:01:42]} O-O {[%clk 00:14:52]} {[%emt 00:00:08]} 10. Bd2 {[%clk
00:11:21]} {[%emt 00:00:20]} h6 {[%clk 00:14:44]} {[%emt 00:00:13]} 11. Ne1
{[%clk 00:10:46]} {[%emt 00:00:41]} d5 {[%clk 00:14:27]} {[%emt 00:00:22]} 12.
cxd5 {[%clk 00:10:35]} {[%emt 00:00:16]} exd5 {[%clk 00:14:30]} {[%emt
00:00:02]} 13. Qc1 {[%clk 00:09:14]} {[%emt 00:01:27]} Kh7 {[%clk 00:14:30]}
{[%emt 00:00:04]} 14. Nc2 {[%clk 00:08:02]} {[%emt 00:01:17]} a4 {[%clk
00:12:38]} {[%emt 00:01:58]} 15. b4 {[%clk 00:07:16]} {[%emt 00:00:50]} axb3
{[%clk 00:12:14]} {[%emt 00:00:29]} 16. Rxb3 {[%clk 00:07:20]} {[%emt
00:00:02]} b6 {[%clk 00:10:57]} {[%emt 00:01:21]} 17. Qb1 {[%clk 00:06:31]}
{[%emt 00:00:54]} c4 {[%clk 00:10:48]} {[%emt 00:00:14]} 18. Rxb6 {[%clk
00:06:15]} {[%emt 00:00:21]} cxd3 {[%clk 00:10:44]} {[%emt 00:00:10]} 19. exd3
{[%clk 00:06:18]} {[%emt 00:00:02]} Bf5 {[%clk 00:10:40]} {[%emt 00:00:08]} 20.
Nxd5 {[%clk 00:04:32]} {[%emt 00:01:51]} Bxd3 {[%clk 00:09:23]} {[%emt
00:01:22]} 21. Nxe7 {[%clk 00:04:10]} {[%emt 00:00:27]} Nxe7 {[%clk 00:09:16]}
{[%emt 00:00:12]} 22. Bxa8 {[%clk 00:03:44]} {[%emt 00:00:31]} Bxf1 {[%clk
00:08:45]} {[%emt 00:00:36]} 23. Kxf1 {[%clk 00:03:44]} {[%emt 00:00:05]} Qxa8
{[%clk 00:08:48]} {[%emt 00:00:02]} 24. Kg1 {[%clk 00:03:39]} {[%emt 00:00:10]}
Rd8 {[%clk 00:08:39]} {[%emt 00:00:14]} 25. Be3 {[%clk 00:03:24]} {[%emt
00:00:20]} Qf3 {[%clk 00:08:31]} {[%emt 00:00:13]} 26. Ne1 {[%clk 00:02:31]}
{[%emt 00:00:58]} Rd1 {[%clk 00:08:32]} {[%emt 00:00:04]} 27. Qb4 {[%clk
00:02:30]} {[%emt 00:00:06]} Nd5 {[%clk 00:08:33]} {[%emt 00:00:03]} 28. Qa5
{[%clk 00:00:46]} {[%emt 00:01:50]} Bc3 {[%clk 00:08:33]} {[%emt 00:00:05]} 0-1

[Event "Open NK Rapid 2025"]
[Site "Helmond, Netherlands"]
[Date "2025.05.03"]
[Round "2.17"]
[White "De Jong, Lode"]
[Black "Van Batenburg, Mees"]
[Result "0-1"]
[TimeControl "15+5"]
[WhiteFideId "40101860"]
[BlackFideId "1078259"]
[WhiteElo "1848"]
[BlackElo "2217"]

1. d4 {[%clk 00:15:08]} {[%emt 00:00:01]} e6 {[%clk 00:15:10]} {[%emt
00:00:01]} 2. e4 {[%clk 00:15:06]} {[%emt 00:00:07]} d5 {[%clk 00:15:13]} 3.
Nc3 {[%clk 00:15:10]} {[%emt 00:00:01]} Bb4 {[%clk 00:15:17]} {[%emt 00:00:01]}
4. e5 {[%clk 00:15:14]} {[%emt 00:00:01]} c5 {[%clk 00:15:22]} 5. a3 {[%clk
00:15:18]} Bxc3+ {[%clk 00:15:25]} 6. bxc3 {[%clk 00:15:22]} {[%emt 00:00:01]}
Nc6 {[%clk 00:15:30]} 7. Qg4 {[%clk 00:14:56]} {[%emt 00:00:31]} g6 {[%clk
00:15:30]} {[%emt 00:00:04]} 8. h4 {[%clk 00:14:55]} {[%emt 00:00:06]} h6
{[%clk 00:15:34]} {[%emt 00:00:01]} 9. Nf3 {[%clk 00:13:13]} {[%emt 00:01:47]}
Bd7 {[%clk 00:15:32]} {[%emt 00:00:07]} 10. Bd3 {[%clk 00:13:14]} {[%emt
00:00:04]} Nge7 {[%clk 00:15:26]} {[%emt 00:00:12]} 11. Qf4 {[%clk 00:12:43]}
{[%emt 00:00:36]} Qa5 {[%clk 00:15:28]} {[%emt 00:00:03]} 12. Bd2 {[%clk
00:12:46]} {[%emt 00:00:02]} c4 {[%clk 00:15:27]} {[%emt 00:00:06]} 13. Be2
{[%clk 00:12:50]} Qa4 {[%clk 00:15:30]} {[%emt 00:00:02]} 14. Qf6 {[%clk
00:11:38]} {[%emt 00:01:16]} O-O-O {[%clk 00:15:12]} {[%emt 00:00:24]} 15. Ra2
{[%clk 00:10:15]} {[%emt 00:01:28]} Rh7 {[%clk 00:15:13]} {[%emt 00:00:04]} 16.
h5 {[%clk 00:08:24]} {[%emt 00:01:56]} Ng8 {[%clk 00:13:21]} {[%emt 00:01:57]}
17. Qh4 {[%clk 00:07:26]} {[%emt 00:01:06]} Rf8 {[%clk 00:12:49]} {[%emt
00:00:33]} 18. g4 {[%clk 00:03:11]} {[%emt 00:04:20]} g5 {[%clk 00:12:48]}
{[%emt 00:00:07]} 19. Bxg5 {[%clk 00:01:54]} {[%emt 00:01:22]} hxg5 {[%clk
00:12:51]} {[%emt 00:00:02]} 20. Nxg5 {[%clk 00:01:57]} Rh8 {[%clk 00:12:43]}
{[%emt 00:00:13]} 21. f4 {[%clk 00:01:56]} {[%emt 00:00:05]} f6 {[%clk
00:12:36]} {[%emt 00:00:13]} 22. Nf3 {[%clk 00:01:57]} {[%emt 00:00:04]} Qa5
{[%emt 00:00:04]} 23. Kd2 {[%clk 00:01:53]} {[%emt 00:00:06]} Be8 {[%clk
00:12:18]} {[%emt 00:00:28]} 24. exf6 {[%clk 00:01:38]} {[%emt 00:00:20]} Nxf6
{[%clk 00:12:21]} {[%emt 00:00:02]} 25. h6 {[%clk 00:01:42]} {[%emt 00:00:01]}
Ne4+ {[%clk 00:12:22]} {[%emt 00:00:04]} 26. Kc1 {[%clk 00:01:33]} {[%emt
00:00:14]} Nxc3 {[%clk 00:12:25]} {[%emt 00:00:01]} 27. Qe1 {[%clk 00:01:13]}
{[%emt 00:00:25]} Nxa2+ {[%clk 00:12:27]} {[%emt 00:00:03]} 28. Kb2 {[%clk
00:01:18]} Qxe1 {[%clk 00:12:26]} {[%emt 00:00:05]} 29. Nxe1 {[%clk 00:01:21]}
{[%emt 00:00:02]} Nxd4 {[%clk 00:12:28]} {[%emt 00:00:04]} 30. Bd1 {[%clk
00:01:22]} {[%emt 00:00:04]} Rxf4 {[%clk 00:12:12]} {[%emt 00:00:20]} 31. g5
{[%clk 00:01:23]} {[%emt 00:00:04]} Bg6 {[%clk 00:11:39]} {[%emt 00:00:39]} 32.
Kxa2 {[%clk 00:01:23]} {[%emt 00:00:05]} Rf2 {[%clk 00:11:40]} {[%emt
00:00:03]} 33. Kb1 {[%clk 00:01:24]} {[%emt 00:00:04]} Kd7 {[%clk 00:11:39]}
{[%emt 00:00:06]} 34. Bh5 {[%clk 00:01:22]} {[%emt 00:00:07]} Be4 {[%clk
00:10:39]} {[%emt 00:01:06]} 35. Rg1 {[%clk 00:01:19]} {[%emt 00:00:07]} Ne2
{[%clk 00:10:27]} {[%emt 00:00:17]} 36. Bxe2 {[%clk 00:01:10]} {[%emt
00:00:15]} Rxe2 {[%clk 00:10:31]} {[%emt 00:00:01]} 37. Kc1 {[%clk 00:01:11]}
{[%emt 00:00:04]} Rg8 {[%clk 00:10:06]} {[%emt 00:00:29]} 38. Kd1 {[%clk
00:01:08]} {[%emt 00:00:08]} Rh2 {[%clk 00:10:10]} {[%emt 00:00:01]} 39. Rg4
{[%clk 00:00:58]} {[%emt 00:00:15]} Bf5 {[%clk 00:10:03]} {[%emt 00:00:13]} 40.
Rf4 {[%clk 00:01:00]} {[%emt 00:00:03]} Rxg5 {[%clk 00:10:04]} {[%emt
00:00:04]} 0-1

[Event "Open NK Rapid 2025"]
[Site "Helmond, Netherlands"]
[Date "2025.05.03"]
[Round "2.18"]
[White "Smeets, Kobe"]
[Black "Duong, Ralf"]
[Result "1-0"]
[TimeControl "15+5"]
[WhiteFideId "1063910"]
[BlackFideId "40100197"]
[WhiteElo "2192"]
[BlackElo "1844"]

1. e4 {[%clk 00:15:08]} {[%emt 00:00:01]} e5 {[%clk 00:15:09]} 2. Nf3 {[%clk
00:15:11]} {[%emt 00:00:02]} Bc5 {[%clk 00:15:13]} {[%emt 00:00:01]} 3. Bc4
{[%clk 00:14:49]} {[%emt 00:00:27]} Nf6 {[%clk 00:15:16]} {[%emt 00:00:02]} 4.
d3 {[%clk 00:14:45]} {[%emt 00:00:09]} d6 {[%clk 00:15:17]} {[%emt 00:00:05]} 5.
c3 {[%clk 00:14:46]} {[%emt 00:00:04]} Bg4 {[%clk 00:15:19]} {[%emt 00:00:03]}
6. h3 {[%clk 00:14:48]} {[%emt 00:00:03]} Bh5 {[%clk 00:15:22]} {[%emt
00:00:01]} 7. Nbd2 {[%clk 00:14:45]} {[%emt 00:00:08]} Nc6 {[%clk 00:15:01]}
{[%emt 00:00:27]} 8. g4 {[%clk 00:14:38]} {[%emt 00:00:12]} Bg6 {[%clk
00:15:02]} {[%emt 00:00:03]} 9. Nf1 {[%clk 00:14:27]} {[%emt 00:00:16]} Na5
{[%clk 00:15:05]} {[%emt 00:00:03]} 10. Bb5+ {[%clk 00:14:23]} {[%emt
00:00:09]} c6 {[%clk 00:15:07]} {[%emt 00:00:02]} 11. Ba4 {[%clk 00:14:28]}
{[%emt 00:00:01]} b5 {[%clk 00:15:07]} {[%emt 00:00:05]} 12. Bc2 {[%clk
00:14:31]} {[%emt 00:00:01]} Bb6 {[%clk 00:14:55]} {[%emt 00:00:17]} 13. Ng3
{[%clk 00:14:33]} {[%emt 00:00:03]} Qc7 {[%clk 00:14:18]} {[%emt 00:00:42]} 14.
Bg5 {[%clk 00:14:22]} {[%emt 00:00:15]} d5 {[%clk 00:13:38]} {[%emt 00:00:46]}
15. Bxf6 {[%clk 00:14:21]} {[%emt 00:00:07]} gxf6 {[%clk 00:13:41]} {[%emt
00:00:02]} 16. Qe2 {[%clk 00:14:20]} {[%emt 00:00:05]} O-O-O {[%clk 00:12:33]}
{[%emt 00:01:13]} 17. O-O-O {[%clk 00:14:11]} {[%emt 00:00:15]} Nb7 {[%clk
00:11:12]} {[%emt 00:01:25]} 18. Kb1 {[%clk 00:13:56]} {[%emt 00:00:20]} Rhe8
{[%clk 00:10:14]} {[%emt 00:01:04]} 19. h4 {[%clk 00:13:41]} {[%emt 00:00:19]}
h6 {[%clk 00:10:09]} {[%emt 00:00:10]} 20. h5 {[%clk 00:13:45]} {[%emt
00:00:01]} Bh7 {[%clk 00:10:12]} {[%emt 00:00:02]} 21. Nd2 {[%clk 00:13:24]}
{[%emt 00:00:25]} Qe7 {[%clk 00:09:31]} {[%emt 00:00:47]} 22. f3 {[%clk
00:13:24]} {[%emt 00:00:04]} d4 {[%clk 00:09:12]} {[%emt 00:00:25]} 23. cxd4
{[%clk 00:13:25]} {[%emt 00:00:04]} Bxd4 {[%clk 00:09:10]} {[%emt 00:00:08]} 24.
Nb3 {[%clk 00:13:28]} {[%emt 00:00:01]} c5 {[%clk 00:09:04]} {[%emt 00:00:11]}
25. Qd2 {[%clk 00:13:31]} {[%emt 00:00:03]} Rh8 {[%clk 00:08:16]} {[%emt
00:00:52]} 26. Nxd4 {[%clk 00:13:25]} {[%emt 00:00:11]} cxd4 {[%clk 00:08:15]}
{[%emt 00:00:06]} 27. Bb3 {[%clk 00:13:30]} {[%emt 00:00:01]} Kb8 {[%clk
00:08:11]} {[%emt 00:00:09]} 28. Rc1 {[%clk 00:13:33]} {[%emt 00:00:02]} Rd7
{[%clk 00:06:06]} {[%emt 00:02:10]} 29. Rc6 {[%clk 00:12:58]} {[%emt 00:00:39]}
Nd8 {[%clk 00:06:04]} {[%emt 00:00:07]} 30. Rc2 {[%clk 00:12:57]} {[%emt
00:00:05]} Ne6 {[%clk 00:06:07]} {[%emt 00:00:04]} 31. Qa5 {[%clk 00:12:40]}
{[%emt 00:00:21]} Rb7 {[%clk 00:06:01]} {[%emt 00:00:12]} 32. Bd5 {[%clk
00:12:37]} {[%emt 00:00:08]} Rb6 {[%clk 00:06:04]} {[%emt 00:00:01]} 33. Rhc1
{[%clk 00:12:38]} {[%emt 00:00:04]} Qd6 {[%clk 00:05:10]} {[%emt 00:00:58]} 34.
Rc6 {[%clk 00:12:05]} {[%emt 00:00:39]} Qd8 {[%clk 00:04:35]} {[%emt 00:00:41]}
35. Qb4 {[%clk 00:10:46]} {[%emt 00:01:23]} Nf4 {[%emt 00:00:26]} 36. Rxb6+
{[%clk 00:10:38]} {[%emt 00:00:11]} Qxb6 {[%clk 00:04:14]} {[%emt 00:00:08]} 37.
Rc6 {[%clk 00:10:40]} {[%emt 00:00:01]} Qb7 {[%clk 00:03:32]} {[%emt 00:00:48]}
38. Qd6+ {[%clk 00:10:37]} {[%emt 00:00:08]} Ka8 {[%clk 00:03:15]} {[%emt
00:00:17]} 39. Rc7 {[%clk 00:10:38]} {[%emt 00:00:09]} Nxd5 {[%clk 00:03:00]}
{[%emt 00:00:19]} 40. Rxb7 {[%clk 00:10:41]} {[%emt 00:00:03]} Kxb7 {[%clk
00:03:03]} {[%emt 00:00:02]} 41. Qxd5+ {[%clk 00:10:44]} {[%emt 00:00:03]} 1-0